bitfinex/quotes_SOLUSD_20251009
["timestamp","ask_amount","ask_price","bid_price","bid_amount"]
[1760013686799,4.63517984,225.47,225.44,10.87647521]
[1760013687226,0.2,225.47,225.44,11.48647521]
[1760013687402,0.2,225.47,225.44,10.87647521]
[1760013687606,4.6352031,225.47,225.44,10.87647521]
[1760013687917,4.6352031,225.47,225.44,11.48647521]
[1760013688100,0.2,225.47,225.44,11.48647521]
[1760013688820,0.2,225.47,225.45,0.61]
[1760013689128,0.2,225.52,225.5,10.87647521]
[1760013689294,0.2,225.52,225.51,32.08]
[1760013689492,0.2,225.52,225.51,0.41]
[1760013689691,0.2,225.52,225.51,43.40647521]
[1760013689911,23.1165184,225.66,225.54,20.8]
[1760013689912,7.38749078,225.65,225.54,20.8]
[1760013690099,5.14167746,225.65,225.55,63.79647521]
[1760013690296,1.77474099,225.78,225.61,10.87647521]
[1760013690297,0.71,225.68,225.61,10.87647521]
[1760013690493,0.71,225.67,225.63,10.87647521]
[1760013690720,0.71,225.66,225.63,10.87647521]
[1760013691013,4.42993937,225.74,225.64,43.05647521]
[1760013691014,0.71,225.65,225.64,43.05647521]
[1760013691414,0.71,225.65,225.56,10.87647521]
[1760013691611,0.71,225.65,225.58,10.87647521]
[1760013691811,0.71,225.7,225.6,10.87647521]
[1760013691993,0.71,225.69,225.6,10.87647521]
[1760013692201,0.71,225.68,225.57,10.87647521]
[1760013692505,0.71,225.67,225.59,10.87647521]
[1760013692820,0.71,225.71,225.59,10.87647521]
[1760013693010,0.71,225.7,225.59,10.87647521]
[1760013693324,58.65235952,225.75,225.59,10.87647521]
[1760013693325,0.71,225.69,225.59,10.87647521]
[1760013693621,0.71,225.72,225.63,10.87647521]
[1760013693827,0.71,225.72,225.64,32.2]
[1760013694116,0.71,225.72,225.63,10.87647521]
[1760013694117,4.43046386,225.71,225.63,10.87647521]
[1760013694320,0.71,225.7,225.63,10.87647521]
[1760013694522,0.71,225.7,225.65,10.87647521]
[1760013695018,0.71,225.69,225.65,10.87647521]
[1760013695232,0.71,225.68,225.63,10.87647521]
[1760013695422,16.21662353,225.71,225.65,10.87647521]
[1760013695799,15.50662353,225.71,225.65,10.87647521]
[1760013696000,4.43046386,225.71,225.65,10.87647521]
[1760013696503,5.14046386,225.71,225.65,10.87647521]
[1760013696722,16.21662353,225.71,225.65,10.87647521]
[1760013697323,4.43046386,225.71,225.65,10.87647521]
[1760013698029,4.43085648,225.69,225.58,10.87647521]
[1760013698202,4.43085648,225.69,225.57,20.8]
[1760013698203,0.71,225.7,225.62,31.67647521]
[1760013698404,4.42987507,225.74,225.64,10.87647521]
[1760013698604,5.13987507,225.74,225.64,10.87647521]
[1760013699029,4.42987507,225.74,225.63,10.87647521]
[1760013699207,0.2,225.75,225.7,20.8]
[1760013699417,0.2,225.75,225.71,43.05647521]
[1760013699724,4.42837842,225.82,225.75,10.87647521]
[1760013699909,4.42837842,225.82,225.77,10.87647521]
[1760013700402,0.71,225.88,225.77,10.87647521]
[1760013701036,0.71,225.87,225.77,10.87647521]
[1760013701427,0.71,225.87,225.75,31.67647521]
[1760013701745,0.71,225.89,225.81,10.87647521]
[1760013701906,0.71,225.89,225.79,20.8]
[1760013701907,4.42638417,225.92,225.79,10.87647521]
[1760013702238,22.11816563,226.06,225.72,12.98264712]
[1760013702239,0.71,225.95,225.85,10.87647521]
[1760013702411,0.71,225.94,225.86,32.18]
[1760013702725,0.71,225.94,225.85,10.87647521]
[1760013703130,0.71,225.94,225.86,32.18]
[1760013703318,37.61261356,225.99,225.87,10.87647521]
[1760013703319,0.71,225.97,225.87,10.87647521]
[1760013703631,37.61261356,225.99,225.81,4.428447]
[1760013703632,15.48741094,225.99,225.91,10.87647521]
[1760013703808,4.42497455,225.99,225.93,10.87647521]
[1760013704016,4.42477876,226.0,225.93,10.87647521]
[1760013704217,0.71,225.99,225.95,10.87647521]
[1760013704437,0.71,225.99,225.83,19.99999999]
[1760013704438,0.71,225.98,225.92,10.87647521]
[1760013704621,0.72,225.99,225.93,24.3]
[1760013704816,0.72,226.03,225.94,10.87647521]
[1760013705121,0.72,226.02,225.89,10.87647521]
[1760013705315,0.72,226.01,225.89,10.87647521]
[1760013705536,0.72,226.0,225.91,10.87647521]
[1760013705937,0.72,226.0,225.92,32.2]
[1760013706141,0.72,226.0,225.9,10.87647521]
[1760013706142,15.48741094,225.99,225.9,10.87647521]
[1760013706518,15.48741094,225.99,225.92,10.87647521]
[1760013706841,4.42497455,225.99,225.92,10.87647521]
[1760013707340,19.99999999,226.12,225.92,10.87647521]
[1760013707341,0.72,226.03,225.92,10.87647521]
[1760013707734,5.12096763,226.06,225.92,10.87647521]
[1760013707927,5.84096763,226.05,225.93,63.87647521]
[1760013708134,4.42399575,226.04,225.93,63.87647521]
[1760013708320,4.42399575,226.04,225.93,31.67647521]
[1760013708648,4.42399575,226.04,225.87,5.41393339]
[1760013708649,0.72,226.03,225.87,5.41393339]
[1760013708854,5.12096763,225.99,225.92,10.87647521]
[1760013709022,0.72,225.98,225.92,10.87647521]
[1760013709323,0.72,225.98,225.91,20.8]
[1760013709324,5.84096763,226.0,225.93,32.2]
[1760013709519,0.72,225.99,225.89,10.87647521]
[1760013709727,37.60396389,226.04,225.89,10.87647521]
[1760013709728,5.12096763,225.97,225.89,10.87647521]
[1760013710056,5.12096763,225.92,225.76,34.54]
[1760013710338,0.72,225.94,225.77,43.07647521]
[1760013710538,15.49015268,225.95,225.86,20.8]
[1760013710539,4.42575791,225.95,225.86,20.8]
[1760013710837,11.062833,225.99,225.85,10.87647521]
[1760013710838,4.42552366,225.97,225.89,10.87647521]
[1760013711046,0.72,226.0,225.89,10.87647521]
[1760013711345,0.72,226.0,225.91,10.87647521]
[1760013711636,5.84096763,225.99,225.88,20.8]
[1760013711841,0.72,225.98,225.89,10.87647521]
[1760013712030,5.84096763,225.97,225.9,32.22]
[1760013712231,5.14556204,225.96,225.9,32.22]
[1760013712639,16.20946715,225.96,225.91,10.87647521]
[1760013712823,5.14556204,225.96,225.91,10.87647521]
[1760013713233,4.42556204,225.96,225.91,10.87647521]
[1760013713542,4.42491526,226.0,225.91,10.87647521]
[1760013714345,0.72,225.99,225.88,10.87647521]
[1760013714521,0.72,225.98,225.85,20.8]
[1760013714844,0.72,225.98,225.9,10.87647521]
[1760013715426,0.72,226.01,225.9,10.87647521]
[1760013715625,5.12096763,226.02,225.9,10.87647521]
[1760013715824,5.12096763,226.0,225.92,10.87647521]
[1760013716027,5.12096763,226.0,225.83,4.42793662]
[1760013716028,5.12096763,225.96,225.78,11.06145745]
[1760013716246,5.12096763,225.94,225.84,10.87647521]
[1760013716444,0.72,225.93,225.86,10.87647521]
[1760013716628,0.72,225.92,225.86,10.87647521]
[1760013716837,15.49015268,225.95,225.86,10.87647521]
[1760013717137,4.42575791,225.95,225.86,10.87647521]
[1760013717322,4.42548988,225.97,225.86,10.87647521]
[1760013717530,5.14504805,225.99,225.86,10.87647521]
[1760013717761,0.72,225.99,225.9,10.87647521]
[1760013717920,0.72,226.02,225.92,10.87647521]
[1760013718125,0.72,226.05,225.96,10.87647521]
[1760013718338,0.72,226.04,225.95,20.8]
[1760013718537,0.72,226.03,225.96,32.22]
[1760013718733,0.72,226.03,225.97,32.22]
[1760013719348,0.72,226.02,225.91,31.67647521]
[1760013719526,5.12096763,226.0,225.92,32.22]
[1760013719727,5.12096763,226.0,225.93,32.22]
[1760013720159,15.48878168,225.97,225.88,10.87647521]
[1760013720325,15.48878168,225.97,225.79,10.87647521]
[1760013720326,0.72,225.96,225.79,10.87647521]
[1760013720529,0.72,225.95,225.81,10.87647521]
[1760013720860,5.84096763,225.95,225.85,10.87647521]
[1760013721030,5.84096763,225.95,225.86,32.22]
[1760013721232,15.48878168,225.97,225.82,10.87647521]
[1760013721233,0.72,225.94,225.82,10.87647521]
[1760013721459,0.72,225.94,225.78,34.52]
[1760013721460,5.12096763,225.92,225.83,32.22]
[1760013721646,0.72,225.91,225.83,32.22]
[1760013722234,4.42673749,225.9,225.83,32.22]
[1760013722461,4.42673749,225.9,225.84,32.22]
[1760013722635,4.42673749,225.9,225.79,10.87647521]
[1760013722836,4.42673749,225.9,225.81,10.87647521]
[1760013723037,15.49358122,225.9,225.82,32.22]
[1760013723760,4.42673749,225.9,225.83,32.2]
[1760013723942,4.42673749,225.9,225.79,10.87647521]
[1760013724259,4.42673749,225.9,225.81,10.87647521]
[1760013724462,0.72,225.93,225.81,20.8]
[1760013724663,0.72,225.92,225.81,20.8]
[1760013725152,0.72,225.91,225.82,32.3]
[1760013726061,37.6174763,225.96,225.83,10.87647521]
[1760013726252,15.49152392,225.93,225.83,10.87647521]
[1760013726558,4.42614969,225.93,225.84,0.9]
[1760013727461,4.42614969,225.93,225.78,34.52]
[1760013727462,0.72,225.92,225.85,32.3]
[1760013727637,0.72,225.92,225.79,10.87647521]
[1760013727958,0.72,225.91,225.8,32.3]
[1760013728260,15.49426711,225.89,225.8,32.3]
[1760013728456,0.72,225.88,225.8,32.3]
[1760013728759,0.72,225.88,225.79,10.87647521]
[1760013728960,0.72,225.88,225.78,34.52]
[1760013728961,0.72,225.87,225.78,34.52]
[1760013729159,15.49426711,225.89,225.79,32.3]
[1760013729371,15.49426711,225.89,225.78,34.52]
[1760013729540,15.49426711,225.89,225.75,11.38647521]
[1760013729541,5.12096763,225.87,225.72,10.87647521]
[1760013729859,5.12096763,225.87,225.73,32.28]
[1760013730158,5.12096763,225.87,225.7,0.51]
[1760013730359,15.49632515,225.86,225.72,10.87647521]
[1760013730543,15.49632515,225.86,225.72,11.38647521]
[1760013731063,15.49632515,225.86,225.74,10.87647521]
[1760013731244,15.49632515,225.86,225.76,10.87647521]
[1760013731445,15.49632515,225.86,225.77,32.28]
[1760013731955,0.72,225.85,225.78,32.28]
[1760013732157,0.72,225.85,225.75,0.51]
[1760013732363,15.49769747,225.84,225.76,30.68]
[1760013732544,0.72,225.83,225.77,32.28]
[1760013732745,0.72,225.82,225.78,32.28]
[1760013733051,0.72,225.82,225.71,11.38647521]
[1760013733052,0.72,225.82,225.77,32.28]
[1760013733257,0.72,225.81,225.69,10.87647521]
[1760013733452,0.72,225.8,225.7,32.28]
[1760013733760,0.72,225.79,225.7,32.28]
[1760013734165,0.72,225.79,225.69,10.87647521]
[1760013734166,15.50181592,225.78,225.69,10.87647521]
[1760013734468,15.50181592,225.78,225.7,32.28]
[1760013734634,15.50181592,225.78,225.71,32.28]
[1760013734843,16.22181592,225.78,225.68,0.51]
[1760013735137,0.72,225.77,225.69,32.28]
[1760013735342,4.42885343,225.8,225.7,0.51]
[1760013735552,15.50059833,225.8,225.7,0.51]
[1760013735952,15.50059833,225.8,225.71,10.87647521]
[1760013736378,15.50059833,225.8,225.7,0.51]
[1760013736537,4.42885343,225.8,225.73,0.9]
[1760013736742,4.42885343,225.8,225.74,0.51]
[1760013737466,4.42885343,225.8,225.73,0.9]
[1760013737640,4.42885343,225.8,225.74,32.24]
[1760013737641,0.72,225.79,225.74,32.24]
[1760013737846,4.42885343,225.8,225.74,32.24]
[1760013738251,4.42850183,225.81,225.74,32.24]
[1760013738763,0.72,225.85,225.74,32.24]
[1760013738764,4.42791356,225.84,225.74,32.24]
[1760013739063,4.42791356,225.84,225.75,0.51]
[1760013739241,4.42791356,225.84,225.76,32.24]
[1760013739638,16.21769747,225.84,225.76,32.24]
[1760013741146,16.21769747,225.84,225.74,0.51]
[1760013741355,16.21769747,225.84,225.73,0.9]
[1760013741356,16.21769747,225.84,225.75,32.22]
[1760013741541,16.21769747,225.84,225.76,32.22]
[1760013742288,19.99999999,225.95,225.77,11.38647521]
[1760013742289,4.42650854,225.92,225.77,11.38647521]
[1760013742455,4.42650854,225.92,225.78,11.38647521]
[1760013742456,5.14650854,225.92,225.78,11.38647521]
[1760013742770,4.42673749,225.9,225.8,10.87647521]
[1760013742962,0.72,225.89,225.8,10.87647521]
[1760013743561,0.72,225.89,225.81,32.38]
[1760013744053,0.72,225.89,225.79,0.51]
[1760013744054,37.62726869,225.9,225.76,20.8]
[1760013744256,0.72,225.88,225.74,32.4]
[1760013744474,0.72,225.87,225.75,0.51]
[1760013744964,15.49632515,225.86,225.75,0.51]
[1760013745538,0.66,225.85,225.75,0.51]
[1760013745750,0.66,225.85,225.76,30.38]
[1760013746469,0.66,225.85,225.78,0.9]
[1760013746673,4.42752147,225.86,225.78,1.41]
[1760013746870,11.06862422,225.87,225.79,32.4]
[1760013747246,4.42712944,225.88,225.79,32.4]
[1760013747247,4.42712944,225.88,225.8,11.38647521]
[1760013747551,23.69369129,226.05,225.82,10.87647521]
[1760013747552,0.66,225.95,225.82,10.87647521]
[1760013747751,0.66,225.95,225.83,0.51]
[1760013747971,0.66,225.95,225.84,10.87647521]
[1760013748556,0.66,225.95,225.85,0.51]
[1760013748875,4.42595379,225.94,225.86,32.4]
[1760013749041,0.66,225.96,225.87,0.51]
[1760013749249,4.42575791,225.95,225.87,0.51]
[1760013749749,15.49015268,225.95,225.87,0.51]
[1760013751473,0.66,225.94,225.86,32.4]
[1760013752368,15.49015268,225.95,225.87,0.51]
[1760013752783,4.42575791,225.95,225.87,0.51]
[1760013752972,15.48878168,225.97,225.86,32.4]
[1760013753164,0.66,225.94,225.86,32.4]
[1760013753775,0.66,225.94,225.87,32.36]
[1760013754072,16.14878168,225.97,225.88,32.34]
[1760013755173,4.42536619,225.97,225.89,11.38647521]
[1760013755357,4.42536619,225.97,225.9,0.51]
[1760013756248,4.42497455,225.99,225.9,0.51]
[1760013756474,15.48741094,225.99,225.9,0.51]
[1760013758978,0.66,226.04,225.91,10.87647521]
[1760013759150,0.66,226.04,225.93,10.87647521]
[1760013759692,0.66,226.04,225.94,32.28]
[1760013759854,0.66,226.04,225.94,32.79]
[1760013760789,0.66,226.04,225.93,10.87647521]
[1760013760790,5.08419147,226.03,225.95,32.28]
[1760013761086,5.08419147,226.03,225.96,32.28]
[1760013761451,5.08419147,226.03,225.93,0.51]
[1760013761452,0.66,226.02,225.91,10.87647521]
[1760013761661,15.48467016,226.03,225.91,10.87647521]
[1760013761662,0.66,226.01,225.93,10.87647521]
[1760013761875,0.66,226.0,225.93,10.87647521]
[1760013762079,0.66,226.0,225.94,23.74]
[1760013762277,15.48467016,226.03,225.94,23.74]
[1760013762454,11.06047869,226.03,225.94,23.74]
[1760013762658,0.66,226.02,225.94,23.74]
[1760013763378,0.66,226.02,225.95,32.26]
[1760013763789,0.66,226.02,225.86,20.8]
[1760013763956,0.66,226.01,225.9,31.67647521]
[1760013764159,5.78096763,226.0,225.9,10.87647521]
[1760013764350,5.12096763,225.98,225.91,32.26]
[1760013764556,15.48878168,225.97,225.91,32.26]
[1760013765652,15.48878168,225.97,225.9,10.87647521]
[1760013765964,0.72,225.99,225.91,32.22]
[1760013766281,0.72,226.04,225.92,11.38647521]
[1760013766577,0.72,226.07,225.96,10.87647521]
[1760013766778,0.72,226.07,225.98,10.87647521]
[1760013767081,0.72,226.07,225.99,32.28]
[1760013767669,4.42360435,226.06,225.99,32.28]
[1760013768581,15.48261523,226.06,225.99,32.28]
[1760013769770,15.48261523,226.06,225.98,10.87647521]
[1760013769972,15.48261523,226.06,225.99,32.24]
[1760013770662,15.48261523,226.06,226.0,32.22]
[1760013771369,15.48261523,226.06,225.98,10.87647521]
[1760013771679,15.48261523,226.06,225.99,32.2]
[1760013771879,15.48261523,226.06,225.98,10.87647521]
[1760013771880,0.72,226.05,226.0,32.2]
[1760013772083,0.72,226.04,226.01,32.2]
[1760013772960,5.14223499,226.13,226.03,10.87647521]
[1760013773159,5.14223499,226.13,226.04,0.51]
[1760013773160,0.72,226.13,226.04,0.51]
[1760013773387,0.72,226.12,226.02,10.87647521]
[1760013773572,0.72,226.11,226.05,32.28]
[1760013773766,0.72,226.13,226.05,32.28]
[1760013775080,0.72,226.12,225.97,0.51]
[1760013775262,0.72,226.12,225.92,13.28285847]
[1760013775263,0.72,226.12,226.0,0.51]
[1760013775461,0.67,226.11,226.01,32.28]
[1760013775657,41.29124246,226.16,226.01,32.28]
[1760013775658,0.67,226.1,226.01,32.28]
[1760013775863,0.67,226.09,226.02,32.28]
[1760013776882,0.67,226.09,226.0,0.51]
[1760013776883,0.67,226.09,226.03,32.28]
[1760013777268,15.48124557,226.08,226.03,32.28]
[1760013777686,16.15124557,226.08,226.03,32.28]
[1760013777881,0.67,226.07,226.03,32.28]
[1760013778082,5.093038,226.09,226.03,32.28]
[1760013778268,0.67,226.08,226.03,32.28]
[1760013778473,0.67,226.07,226.0,0.51]
[1760013778669,0.67,226.07,226.01,32.26]
[1760013779382,15.48261523,226.06,225.98,11.38647521]
[1760013779566,16.15261523,226.06,225.99,32.24]
[1760013780166,16.15261523,226.06,226.0,0.51]
[1760013780167,15.48261523,226.06,226.0,0.51]
[1760013780376,4.42360435,226.06,226.01,32.24]
[1760013780581,4.42360435,226.06,226.02,0.51]
[1760013780761,0.67,226.12,226.03,0.51]
[1760013780762,4.4224399,226.12,226.03,0.51]
[1760013780961,4.4218439,226.15,226.04,10.87647521]
[1760013781163,4.4218439,226.15,226.06,10.87647521]
[1760013781362,0.2,226.16,226.08,10.87647521]
[1760013781562,0.2,226.16,226.08,15.29968048]
[1760013781792,0.2,226.16,226.1,10.87647521]
[1760013782284,0.2,226.16,226.07,53.08]
[1760013782285,0.2,226.16,226.11,0.51]
[1760013782488,3.50717501,226.13,226.07,2.30955389]
[1760013782670,0.67,226.12,226.02,0.51]
[1760013782875,0.67,226.12,226.07,18.34]
[1760013783378,15.47919153,226.11,226.07,18.34]
[1760013783590,15.47919153,226.11,226.03,10.87647521]
[1760013783889,0.67,226.1,226.04,32.36]
[1760013785585,15.48056083,226.09,226.04,32.36]
[1760013786576,0.67,226.08,226.0,0.51]
[1760013786780,0.67,226.08,226.01,32.32]
[1760013786992,0.67,226.07,225.98,10.87647521]
[1760013787291,37.59564774,226.09,225.97,34.5]
[1760013787292,0.67,226.06,225.99,32.32]
[1760013787590,15.48330015,226.05,225.99,32.32]
[1760013787891,15.48330015,226.05,226.0,0.51]
[1760013788191,4.42380004,226.05,226.01,0.51]
[1760013788381,4.42380004,226.05,226.02,0.51]
[1760013789091,4.42340867,226.07,226.02,0.51]
[1760013789269,15.48193036,226.07,226.0,10.87647521]
[1760013789466,11.05852169,226.07,226.0,10.87647521]
[1760013792480,11.72852169,226.07,226.01,32.28]
[1760013792672,0.67,226.06,226.0,10.87647521]
[1760013792878,4.17717501,226.05,225.93,10.87647521]
[1760013793084,0.67,226.04,225.95,10.87647521]
[1760013793670,15.48467016,226.03,225.95,10.87647521]
[1760013794701,0.67,226.02,225.95,10.87647521]
[1760013795306,0.67,226.02,225.94,0.51]
[1760013795605,0.67,226.02,225.96,32.26]
[1760013795779,15.48604043,226.01,225.97,32.24]
[1760013795980,0.67,226.0,225.97,32.24]
[1760013796177,0.67,225.99,225.88,10.87647521]
[1760013796381,0.67,225.98,225.84,0.51]
[1760013796581,3.50717501,225.96,225.85,27.0]
[1760013796792,0.67,225.95,225.85,27.0]
[1760013796991,0.67,225.94,225.85,27.0]
[1760013797298,2.96753887,226.0,225.72,19.99999999]
[1760013797299,4.17717501,225.93,225.81,10.87647521]
[1760013797504,3.50717501,225.89,225.8,34.5]
[1760013797684,3.50717501,225.96,225.81,32.24]
[1760013797685,3.50717501,225.85,225.81,32.24]
[1760013797890,4.42791356,225.84,225.81,32.24]
[1760013798094,15.49769747,225.84,225.81,32.24]
[1760013798386,15.49769747,225.84,225.8,34.5]
[1760013798575,0.67,225.83,225.82,32.24]
[1760013798780,0.67,225.83,225.81,32.26]
[1760013798982,0.67,225.82,225.81,32.26]
[1760013799385,4.17717501,225.82,225.79,32.26]
[1760013799597,0.67,225.81,225.79,32.26]
[1760013799808,4.42810963,225.83,225.79,32.26]
[1760013800011,11.06978391,225.84,225.79,32.26]
[1760013800012,4.42794669,225.84,225.79,32.26]
[1760013800383,15.4977306,225.84,225.79,32.26]
[1760013800582,4.17717501,225.83,225.79,32.26]
[1760013800898,3.50717501,225.82,225.79,32.26]
[1760013801103,0.67,225.81,225.79,32.26]
[1760013801482,4.17717501,225.8,225.77,32.26]
[1760013801691,0.67,225.8,225.77,32.26]
[1760013801891,4.42909026,225.78,225.77,32.26]
[1760013802609,100.0,225.79,225.77,32.77]
[1760013802815,100.0,225.79,225.78,0.51]
[1760013804919,100.0,225.79,225.78,15.81556547]
[1760013805107,41.3166832,225.79,225.78,15.81556547]
[1760013806133,41.3166832,225.79,225.78,11.38647521]
[1760013806336,41.3166832,225.79,225.78,43.68647521]
[1760013807125,41.3166832,225.79,225.78,32.81]
[1760013807295,41.3166832,225.79,225.78,32.3]
[1760013807623,41.3166832,225.79,225.78,53.63]
[1760013808121,41.3166832,225.79,225.78,68.93556547]
[1760013808620,41.3166832,225.79,225.78,64.50647521]
[1760013808996,41.3166832,225.79,225.78,43.70647521]
[1760013809197,41.3166832,225.79,225.78,43.19647521]
[1760013810127,41.3166832,225.79,225.78,43.70647521]
[1760013811415,41.3166832,225.79,225.78,11.38647521]
[1760013811595,41.3166832,225.79,225.78,43.15647521]
[1760013811794,41.3166832,225.79,225.75,21.31]
[1760013812035,41.3166832,225.79,225.76,43.13647521]
[1760013812327,41.3166832,225.79,225.77,32.26]
[1760013813610,41.3166832,225.79,225.78,10.87647521]
[1760013813824,41.3166832,225.79,225.78,11.38647521]
[1760013814130,41.3166832,225.79,225.78,10.87647521]
[1760013814321,41.3166832,225.79,225.69,29.78777808]
[1760013814628,41.3166832,225.79,225.75,10.87647521]
[1760013814930,41.3166832,225.79,225.76,0.51]
[1760013815131,41.3166832,225.79,225.78,31.67647521]
[1760013815360,41.3166832,225.79,225.78,32.18647521]
[1760013816520,41.3166832,225.79,225.78,31.67647521]
[1760013816755,41.3166832,225.79,225.78,64.44647521]
[1760013816952,41.3166832,225.79,225.78,68.87556547]
[1760013819434,41.3166832,225.79,225.78,36.10556547]
[1760013819638,41.3166832,225.79,225.78,68.87556547]
[1760013819845,41.3166832,225.79,225.78,68.85556547]
[1760013820045,41.3166832,225.79,225.77,13.29286394]
[1760013820266,41.3166832,225.79,225.73,10.87647521]
[1760013820472,46.40565039,225.79,225.75,10.87647521]
[1760013820628,41.9766832,225.79,225.75,10.87647521]
[1760013821265,41.9766832,225.79,225.74,32.26]
[1760013821438,0.66,225.78,225.74,32.26]
[1760013822364,41.3166832,225.79,225.74,36.68984595]
[1760013822541,41.3166832,225.79,225.75,11.38647521]
[1760013822746,41.3166832,225.79,225.75,10.87647521]
[1760013823066,41.9766832,225.79,225.75,10.87647521]
[1760013823549,41.3166832,225.79,225.77,10.87647521]
[1760013823744,41.3166832,225.79,225.78,32.26]
[1760013823947,41.3166832,225.79,225.78,43.13647521]
[1760013825049,41.3166832,225.79,225.78,43.64647521]
[1760013825365,41.3166832,225.79,225.78,48.07556547]
[1760013825655,41.3166832,225.79,225.78,47.56556547]
[1760013825868,41.3166832,225.79,225.78,43.13647521]
[1760013826859,42.0066832,225.79,225.78,10.87647521]
[1760013827035,42.0066832,225.79,225.78,32.28]
[1760013827235,42.0066832,225.79,225.78,43.15647521]
[1760013827458,41.3166832,225.79,225.78,43.15647521]
[1760013830065,45.7455773,225.79,225.78,32.26]
[1760013830234,41.3166832,225.79,225.78,43.13647521]
[1760013831761,46.4355773,225.79,225.78,10.87647521]
[1760013831940,46.4355773,225.79,225.78,32.3]
[1760013832148,42.0066832,225.79,225.78,32.3]
[1760013832542,46.4355773,225.79,225.78,32.3]
[1760013833231,45.7455773,225.79,225.78,32.3]
[1760013833439,41.3166832,225.79,225.78,43.17647521]
[1760013834451,41.3166832,225.79,225.78,10.87647521]
[1760013834744,41.3166832,225.79,225.78,43.19647521]
[1760013835066,42.0066832,225.79,225.78,43.19647521]
[1760013835668,42.0066832,225.79,225.78,43.17647521]
[1760013836058,41.3166832,225.79,225.78,43.17647521]
[1760013838069,41.3166832,225.79,225.78,10.87647521]
[1760013838070,41.9766832,225.79,225.78,10.87647521]
[1760013838567,41.3166832,225.79,225.78,43.13647521]
[1760013838963,41.9766832,225.79,225.78,32.28]
[1760013839150,46.4055773,225.79,225.75,10.87647521]
[1760013839350,5.78815558,225.78,225.68,10.87647521]
[1760013839559,10.21744202,225.77,225.7,10.87647521]
[1760013839756,0.66,225.76,225.7,10.87647521]
[1760013840051,0.66,225.75,225.7,10.87647521]
[1760013840367,9.55744202,225.77,225.66,0.51]
[1760013840368,0.66,225.74,225.72,10.87647521]
[1760013840553,4.42928644,225.77,225.73,32.3]
[1760013840739,5.12815558,225.76,225.73,32.3]
[1760013840944,5.12815558,225.74,225.73,32.3]
[1760013841171,5.78815558,225.74,225.64,34.6]
[1760013841341,5.12815558,225.72,225.65,43.17647521]
[1760013841539,16.16662353,225.71,225.65,43.17647521]
[1760013841783,0.66,225.7,225.65,43.17647521]
[1760013842067,0.66,225.69,225.65,43.17647521]
[1760013842241,0.66,225.68,225.65,43.17647521]
[1760013842439,0.66,225.67,225.65,43.17647521]
[1760013842640,15.50662353,225.71,225.65,43.17647521]
[1760013842852,0.66,225.7,225.65,43.17647521]
[1760013843081,0.66,225.69,225.65,43.17647521]
[1760013843290,0.66,225.73,225.69,10.87647521]
[1760013843446,0.66,225.73,225.7,32.28]
[1760013843651,0.66,225.73,225.71,10.87647521]
[1760013843871,0.66,225.73,225.72,32.28]
[1760013844267,5.09007132,225.73,225.72,32.28]
[1760013844684,15.50524963,225.73,225.64,113.4]
[1760013844971,0.66,225.72,225.65,43.15647521]
[1760013845543,4.43046386,225.71,225.65,43.15647521]
[1760013845748,16.16662353,225.71,225.65,43.15647521]
[1760013846174,4.43046386,225.71,225.65,43.15647521]
[1760013846466,0.66,225.76,225.69,10.87647521]
[1760013846643,0.66,225.76,225.71,10.87647521]
[1760013846848,0.66,225.76,225.72,32.26]
[1760013847255,11.07345736,225.77,225.72,32.26]
[1760013847560,0.66,225.75,225.72,32.26]
[1760013847757,0.66,225.74,225.72,32.26]
[1760013848066,0.66,225.76,225.72,32.26]
[1760013848271,0.66,225.75,225.72,32.26]